[Event "*** Titled Tuesday Blitz"]
[Site "Chess.com"]
[Date "2020.11.03"]
[Round "2"]
[White "HouseOfDurin"]
[Black "Oligan22"]
[Result "1-0"]
[WhiteElo "2196"]
[BlackElo "2396"]
[TimeControl "180+1"]
[EndTime "10:19:45 PST"]
[Termination "HouseOfDurin won on time"]

1. d4 {[%clk 0:03:00.9]} 1... Nf6 {[%clk 0:02:58.7]} 2. Bg5 {[%clk 0:03:01.3]}
2... Ne4 {[%clk 0:02:57.1]} 3. h4 {[%clk 0:03:00.9]} 3... c5 {[%clk 0:02:46.2]}
4. dxc5 {[%clk 0:03:00.2]} 4... Qa5+ {[%clk 0:02:42.9]} 5. Nd2 {[%clk
0:03:00.4]} 5... e6 {[%clk 0:02:33.7]} 6. c3 {[%clk 0:02:56]} 6... Nxd2 {[%clk
0:02:32.2]} 7. Qxd2 {[%clk 0:02:55.6]} 7... Qxc5 {[%clk 0:02:31.2]} 8. e4 {[%clk
0:02:53.5]} 8... Nc6 {[%clk 0:02:22.8]} 9. O-O-O {[%clk 0:02:23.8]} 9... Be7
{[%clk 0:02:16.3]} 10. Be3 {[%clk 0:02:22.6]} 10... Qa5 {[%clk 0:02:15.7]} 11.
Kb1 {[%clk 0:02:22.2]} 11... d6 {[%clk 0:02:07.9]} 12. f4 {[%clk 0:02:21]} 12...
Bd7 {[%clk 0:01:54.2]} 13. e5 {[%clk 0:02:04.5]} 13... d5 {[%clk 0:01:52.6]} 14.
Nf3 {[%clk 0:01:56.2]} 14... b5 {[%clk 0:01:52.5]} 15. b4 {[%clk 0:01:34.6]}
15... Qa4 {[%clk 0:01:44.1]} 16. Qc2 {[%clk 0:01:20.2]} 16... Qxc2+ {[%clk
0:01:36.1]} 17. Kxc2 {[%clk 0:01:21.1]} 17... a5 {[%clk 0:01:36.7]} 18. a3
{[%clk 0:01:08]} 18... axb4 {[%clk 0:01:35.2]} 19. axb4 {[%clk 0:01:08.6]} 19...
O-O {[%clk 0:01:24.8]} 20. Kb2 {[%clk 0:01:04.4]} 20... Rfc8 {[%clk 0:01:06.8]}
21. Bxb5 {[%clk 0:00:56.8]} 21... Nxe5 {[%clk 0:01:06.8]} 22. Bxd7 {[%clk
0:00:43.3]} 22... Nxd7 {[%clk 0:01:07.7]} 23. Ra1 {[%clk 0:00:40]} 23... Nf6
{[%clk 0:00:54.6]} 24. Rxa8 {[%clk 0:00:35.9]} 24... Rxa8 {[%clk 0:00:55.5]} 25.
Ra1 {[%clk 0:00:35.7]} 25... Rc8 {[%clk 0:00:49.1]} 26. Ra7 {[%clk 0:00:34.7]}
26... Kf8 {[%clk 0:00:39.1]} 27. b5 {[%clk 0:00:33.6]} 27... Ne4 {[%clk
0:00:38.3]} 28. Bd4 {[%clk 0:00:30.3]} 28... Bd6 {[%clk 0:00:28.7]} 29. b6
{[%clk 0:00:26.3]} 29... Rb8 {[%clk 0:00:17.6]} 30. Be5 {[%clk 0:00:23.4]} 30...
Rxb6+ {[%clk 0:00:16.4]} 31. Kc2 {[%clk 0:00:23.2]} 31... f6 {[%clk 0:00:14.5]}
32. Bxd6+ {[%clk 0:00:21]} 32... Rxd6 {[%clk 0:00:15.4]} 33. Nd4 {[%clk
0:00:20]} 33... h5 {[%clk 0:00:13.7]} 34. Kd3 {[%clk 0:00:12.4]} 34... Nc5+
{[%clk 0:00:12.8]} 35. Ke3 {[%clk 0:00:11.2]} 35... Ne4 {[%clk 0:00:12.8]} 36.
Kd3 {[%clk 0:00:10.8]} 36... Kg8 {[%clk 0:00:13.2]} 37. Re7 {[%clk 0:00:09.3]}
37... Nc5+ {[%clk 0:00:13]} 38. Kc2 {[%clk 0:00:07.2]} 38... Kf8 {[%clk
0:00:12.9]} 39. Rc7 {[%clk 0:00:06.2]} 39... Ne4 {[%clk 0:00:08.4]} 40. f5
{[%clk 0:00:05]} 40... exf5 {[%clk 0:00:07.4]} 41. Nxf5 {[%clk 0:00:05.9]} 41...
Ra6 {[%clk 0:00:05.2]} 42. Nxg7 {[%clk 0:00:05.4]} 42... Ra2+ {[%clk 0:00:05.4]}
43. Kb3 {[%clk 0:00:04.5]} 43... Rxg2 {[%clk 0:00:05.1]} 44. Nxh5 {[%clk
0:00:04.5]} 44... Rh2 {[%clk 0:00:03.3]} 45. Nf4 {[%clk 0:00:04.5]} 45... Rxh4
{[%clk 0:00:02.2]} 46. Nxd5 {[%clk 0:00:05.1]} 46... f5 {[%clk 0:00:02.2]} 47.
Rc6 {[%clk 0:00:03.9]} 47... Rh3 {[%clk 0:00:01.8]} 48. Kb4 {[%clk 0:00:02.6]}
48... Ke8 {[%clk 0:00:02]} 49. Nf6+ {[%clk 0:00:02.7]} 1-0

[Event "*** Titled Tuesday Blitz"]
[Site "Chess.com"]
[Date "2020.11.03"]
[Round "2"]
[White "UmarovSabir"]
[Black "Vesper2018"]
[Result "0-1"]
[WhiteElo "2327"]
[BlackElo "2609"]
[TimeControl "180+1"]
[EndTime "10:19:46 PST"]
[Termination "Vesper2018 won on time"]

1. e4 {[%clk 0:02:59.4]} 1... c5 {[%clk 0:02:59.8]} 2. a3 {[%clk 0:02:56.8]}
2... d5 {[%clk 0:02:40.4]} 3. exd5 {[%clk 0:02:56.1]} 3... Qxd5 {[%clk
0:02:40.5]} 4. Nc3 {[%clk 0:02:54.7]} 4... Qd8 {[%clk 0:02:39.6]} 5. Nf3 {[%clk
0:02:48.5]} 5... Nf6 {[%clk 0:02:36]} 6. d4 {[%clk 0:02:46]} 6... cxd4 {[%clk
0:02:30.8]} 7. Qxd4 {[%clk 0:02:45.1]} 7... Qxd4 {[%clk 0:02:13]} 8. Nxd4 {[%clk
0:02:44.8]} 8... a6 {[%clk 0:02:11.7]} 9. Bf4 {[%clk 0:02:38.8]} 9... e6 {[%clk
0:02:08.6]} 10. O-O-O {[%clk 0:02:22.2]} 10... Bc5 {[%clk 0:02:01.2]} 11. f3
{[%clk 0:02:14.5]} 11... O-O {[%clk 0:01:28.5]} 12. Nb3 {[%clk 0:02:08.9]} 12...
Be7 {[%clk 0:01:28.3]} 13. Bd6 {[%clk 0:02:01.1]} 13... Re8 {[%clk 0:01:24.9]}
14. Bxe7 {[%clk 0:02:00]} 14... Rxe7 {[%clk 0:01:24.8]} 15. Na5 {[%clk
0:01:39.1]} 15... Nbd7 {[%clk 0:00:52.4]} 16. Nc4 {[%clk 0:01:10.9]} 16... b5
{[%clk 0:00:47.4]} 17. Nd6 {[%clk 0:01:10.5]} 17... Nc5 {[%clk 0:00:45.3]} 18.
b4 {[%clk 0:01:00.8]} 18... Nb7 {[%clk 0:00:45.3]} 19. Nce4 {[%clk 0:00:50.2]}
19... Nxd6 {[%clk 0:00:42.4]} 20. Nxd6 {[%clk 0:00:47.2]} 20... Bd7 {[%clk
0:00:40.7]} 21. c4 {[%clk 0:00:44.6]} 21... Rb8 {[%clk 0:00:19.4]} 22. c5 {[%clk
0:00:43.7]} 22... Bc6 {[%clk 0:00:19.1]} 23. Bd3 {[%clk 0:00:40]} 23... Ra8
{[%clk 0:00:11.2]} 24. Kb2 {[%clk 0:00:35.6]} 24... a5 {[%clk 0:00:11]} 25. Bxb5
{[%clk 0:00:07.7]} 25... Bxb5 {[%clk 0:00:10.9]} 26. Nxb5 {[%clk 0:00:07.8]}
26... axb4 {[%clk 0:00:11.3]} 27. c6 {[%clk 0:00:03.9]} 27... bxa3+ {[%clk
0:00:10]} 28. Nxa3 {[%clk 0:00:04]} 28... Nd5 {[%clk 0:00:09.8]} 29. Rc1 {[%clk
0:00:03.4]} 29... Rc7 {[%clk 0:00:08.6]} 30. Nb5 {[%clk 0:00:02.8]} 30... Rb8
{[%clk 0:00:08.6]} 31. Rc5 {[%clk 0:00:01.4]} 31... Ra7 {[%clk 0:00:05.1]} 32.
Kc2 {[%clk 0:00:01.3]} 32... Ra5 {[%clk 0:00:04.9]} 33. Rb1 {[%clk 0:00:01.8]}
33... Rc8 {[%clk 0:00:03.4]} 34. c7 {[%clk 0:00:01.8]} 34... Rxc7 {[%clk
0:00:01.3]} 35. Rxc7 {[%clk 0:00:01.6]} 35... Nxc7 {[%clk 0:00:01.5]} 36. Nxc7
{[%clk 0:00:01.9]} 36... Rc5+ {[%clk 0:00:01.9]} 37. Kd3 {[%clk 0:00:02.6]}
37... g5 {[%clk 0:00:01.9]} 38. Rb8+ {[%clk 0:00:02.9]} 38... Kg7 {[%clk
0:00:01.7]} 39. Nb5 {[%clk 0:00:03.8]} 39... Rd5+ {[%clk 0:00:01.5]} 40. Nd4
{[%clk 0:00:04.7]} 40... e5 {[%clk 0:00:01.5]} 41. Ke4 {[%clk 0:00:04.3]} 41...
Rxd4+ {[%clk 0:00:01.9]} 42. Kxe5 {[%clk 0:00:04.8]} 42... Rd2 {[%clk
0:00:02.6]} 43. g4 {[%clk 0:00:04.2]} 43... Rxh2 {[%clk 0:00:02.4]} 44. Kf5
{[%clk 0:00:04.2]} 44... h6 {[%clk 0:00:02.9]} 0-1

[Event "*** Titled Tuesday Blitz"]
[Site "Chess.com"]
[Date "2020.11.03"]
[Round "2"]
[White "geordie_derraugh"]
[Black "tylityli"]
[Result "0-1"]
[WhiteElo "2437"]
[BlackElo "2272"]
[TimeControl "180+1"]
[EndTime "10:19:47 PST"]
[Termination "tylityli won by resignation"]

1. e4 {[%clk 0:03:00.9]} 1... e5 {[%clk 0:02:58.8]} 2. Nf3 {[%clk 0:03:00.7]}
2... Nc6 {[%clk 0:02:58.1]} 3. Bc4 {[%clk 0:03:00.6]} 3... Nf6 {[%clk
0:02:57.5]} 4. d3 {[%clk 0:02:59.6]} 4... Be7 {[%clk 0:02:57.6]} 5. O-O {[%clk
0:02:59]} 5... O-O {[%clk 0:02:57.3]} 6. c3 {[%clk 0:02:59.2]} 6... d5 {[%clk
0:02:56.2]} 7. exd5 {[%clk 0:02:59.1]} 7... Nxd5 {[%clk 0:02:56.1]} 8. Re1
{[%clk 0:02:59.5]} 8... Bg4 {[%clk 0:02:55.8]} 9. h3 {[%clk 0:02:51.1]} 9... Bh5
{[%clk 0:02:51.8]} 10. g4 {[%clk 0:02:46.5]} 10... Bg6 {[%clk 0:02:51.3]} 11.
Nxe5 {[%clk 0:02:47]} 11... Nxe5 {[%clk 0:02:50.7]} 12. Rxe5 {[%clk 0:02:47.9]}
12... Nb6 {[%clk 0:02:50.3]} 13. Qe2 {[%clk 0:02:36]} 13... Bf6 {[%clk
0:02:42.9]} 14. Rb5 {[%clk 0:02:19.9]} 14... Re8 {[%clk 0:02:35.2]} 15. Be3
{[%clk 0:02:15.8]} 15... Nxc4 {[%clk 0:02:31.2]} 16. dxc4 {[%clk 0:02:15.6]}
16... Bd3 {[%clk 0:02:31]} 17. Qf3 {[%clk 0:01:35.5]} 17... Be4 {[%clk
0:02:22.6]} 18. Qe2 {[%clk 0:01:30]} 18... b6 {[%clk 0:02:05.1]} 19. Nd2 {[%clk
0:01:24.4]} 19... Bd3 {[%clk 0:02:03.8]} 20. Qf3 {[%clk 0:01:24.2]} 20... Qe7
{[%clk 0:01:43.8]} 21. Rd5 {[%clk 0:01:17.2]} 21... Rad8 {[%clk 0:01:40.7]} 22.
Bc5 {[%clk 0:00:50.2]} 22... bxc5 {[%clk 0:01:36.2]} 23. Qxd3 {[%clk 0:00:47.4]}
23... Rd6 {[%clk 0:01:29]} 24. Rd1 {[%clk 0:00:33.8]} 24... h5 {[%clk
0:01:17.7]} 25. gxh5 {[%clk 0:00:27.9]} 25... Be5 {[%clk 0:01:08.6]} 26. Nf3
{[%clk 0:00:25.6]} 26... Bf4 {[%clk 0:01:03.4]} 27. Rxd6 {[%clk 0:00:20.3]}
27... Bxd6 {[%clk 0:01:00.4]} 28. Re1 {[%clk 0:00:20.3]} 28... Qd7 {[%clk
0:00:57.1]} 29. Rxe8+ {[%clk 0:00:21.2]} 29... Qxe8 {[%clk 0:00:56.7]} 30. Qe3
{[%clk 0:00:21.7]} 30... Qc6 {[%clk 0:00:51.8]} 31. Ng5 {[%clk 0:00:21.1]} 31...
Qa4 {[%clk 0:00:36.6]} 32. Qf3 {[%clk 0:00:19.1]} 32... Qe8 {[%clk 0:00:32.3]}
33. Ne4 {[%clk 0:00:18.7]} 33... Qe5 {[%clk 0:00:30]} 34. Nxd6 {[%clk 0:00:18]}
34... cxd6 {[%clk 0:00:26.5]} 35. Kg2 {[%clk 0:00:17.7]} 35... Qg5+ {[%clk
0:00:23.7]} 36. Qg4 {[%clk 0:00:17.3]} 36... Qd2 {[%clk 0:00:20.4]} 37. Qc8+
{[%clk 0:00:17.3]} 37... Kh7 {[%clk 0:00:19.7]} 38. Qf5+ {[%clk 0:00:17.8]}
38... Kg8 {[%clk 0:00:19.6]} 39. Qd5 {[%clk 0:00:16.7]} 39... Qxb2 {[%clk
0:00:17.4]} 40. Qxd6 {[%clk 0:00:16.9]} 40... Qxa2 {[%clk 0:00:13.9]} 41. Qxc5
{[%clk 0:00:16.3]} 41... a5 {[%clk 0:00:13.4]} 42. Qc8+ {[%clk 0:00:14.3]} 42...
Kh7 {[%clk 0:00:12.2]} 43. Qf5+ {[%clk 0:00:14.9]} 43... Kg8 {[%clk 0:00:12]}
44. c5 {[%clk 0:00:15.4]} 44... Qc4 {[%clk 0:00:11]} 45. Qc8+ {[%clk 0:00:14.6]}
45... Kh7 {[%clk 0:00:10.6]} 46. Qf5+ {[%clk 0:00:15.1]} 46... Kg8 {[%clk
0:00:10.1]} 47. Qe5 {[%clk 0:00:15]} 47... a4 {[%clk 0:00:08.7]} 48. Qd4 {[%clk
0:00:13.9]} 48... Qxd4 {[%clk 0:00:04.9]} 49. cxd4 {[%clk 0:00:13.9]} 49... Kf8
{[%clk 0:00:04.8]} 50. d5 {[%clk 0:00:10.9]} 50... Ke7 {[%clk 0:00:04.5]} 51.
Kf3 {[%clk 0:00:10.4]} 51... a3 {[%clk 0:00:04.6]} 52. c6 {[%clk 0:00:10.4]}
52... Kd6 {[%clk 0:00:04.2]} 53. Kf4 {[%clk 0:00:09.6]} 53... a2 {[%clk
0:00:04.4]} 54. Kg5 {[%clk 0:00:09.1]} 54... a1=Q {[%clk 0:00:04.4]} 55. h6
{[%clk 0:00:10]} 55... gxh6+ {[%clk 0:00:03.6]} 56. Kxh6 {[%clk 0:00:10.2]}
56... Kxd5 {[%clk 0:00:04]} 0-1

[Event "*** Titled Tuesday Blitz"]
[Site "Chess.com"]
[Date "2020.11.03"]
[Round "2"]
[White "SamuelGhimpu2003"]
[Black "KuzubovYuriy"]
[Result "0-1"]
[WhiteElo "2541"]
[BlackElo "2822"]
[TimeControl "180+1"]
[EndTime "10:19:48 PST"]
[Termination "KuzubovYuriy won on time"]

1. d4 {[%clk 0:03:00.9]} 1... Nf6 {[%clk 0:02:58.8]} 2. c4 {[%clk 0:03:00.6]}
2... e6 {[%clk 0:02:57.3]} 3. Nc3 {[%clk 0:03:00.4]} 3... Bb4 {[%clk 0:02:56.3]}
4. Qc2 {[%clk 0:03:00]} 4... O-O {[%clk 0:02:49.7]} 5. e4 {[%clk 0:02:59.7]}
5... d5 {[%clk 0:02:48.7]} 6. e5 {[%clk 0:02:57.8]} 6... Ne4 {[%clk 0:02:43.6]}
7. Bd3 {[%clk 0:02:57.3]} 7... c5 {[%clk 0:02:35.9]} 8. Ne2 {[%clk 0:02:57.4]}
8... cxd4 {[%clk 0:02:31.2]} 9. Nxd4 {[%clk 0:02:58.3]} 9... Nd7 {[%clk
0:02:17]} 10. Bf4 {[%clk 0:02:57.9]} 10... Qh4 {[%clk 0:02:15.1]} 11. g3 {[%clk
0:02:57.8]} 11... Qh5 {[%clk 0:02:09.6]} 12. h4 {[%clk 0:02:57.6]} 12... Nxe5
{[%clk 0:02:05.3]} 13. Be2 {[%clk 0:02:57.8]} 13... Ng4 {[%clk 0:02:04.3]} 14.
Bxg4 {[%clk 0:02:58.3]} 14... Qxg4 {[%clk 0:02:00.7]} 15. f3 {[%clk 0:02:59.2]}
15... Qh5 {[%clk 0:01:59.8]} 16. g4 {[%clk 0:02:59.6]} 16... Qg6 {[%clk
0:01:48.4]} 17. fxe4 {[%clk 0:03:00.2]} 17... e5 {[%clk 0:01:27.1]} 18. Bxe5
{[%clk 0:03:00.2]} 18... Re8 {[%clk 0:01:26.7]} 19. O-O-O {[%clk 0:02:28.9]}
19... Rxe5 {[%clk 0:01:21.1]} 20. h5 {[%clk 0:02:11.3]} 20... Qh6+ {[%clk
0:01:06.5]} 21. Kb1 {[%clk 0:02:11.3]} 21... Bxg4 {[%clk 0:01:06.2]} 22. Nxd5
{[%clk 0:01:38.7]} 22... Bxd1 {[%clk 0:01:05.1]} 23. Qxd1 {[%clk 0:01:39.6]}
23... Bf8 {[%clk 0:01:02.9]} 24. Nf5 {[%clk 0:01:33.1]} 24... Qe6 {[%clk
0:00:46.7]} 25. Qd4 {[%clk 0:01:15.4]} 25... Rxe4 {[%clk 0:00:36]} 26. Nh6+
{[%clk 0:01:15.1]} 26... Qxh6 {[%clk 0:00:26.4]} 27. Qxe4 {[%clk 0:01:14.7]}
27... Qe6 {[%clk 0:00:22.4]} 28. Qd3 {[%clk 0:01:12]} 28... Re8 {[%clk
0:00:20.7]} 29. Rg1 {[%clk 0:01:01.9]} 29... Kh8 {[%clk 0:00:20.5]} 30. Qc3
{[%clk 0:00:58.3]} 30... Qe5 {[%clk 0:00:19.5]} 31. Qc1 {[%clk 0:00:26.7]} 31...
Qxh5 {[%clk 0:00:18]} 32. a3 {[%clk 0:00:27.2]} 32... Qf5+ {[%clk 0:00:17.4]}
33. Ka2 {[%clk 0:00:26.9]} 33... g6 {[%clk 0:00:17.5]} 34. Rf1 {[%clk
0:00:26.7]} 34... Qd7 {[%clk 0:00:15.7]} 35. Nf6 {[%clk 0:00:25.7]} 35... Qc8
{[%clk 0:00:15.6]} 36. Nxe8 {[%clk 0:00:26.3]} 36... Qxe8 {[%clk 0:00:16.5]} 37.
Qf4 {[%clk 0:00:23.8]} 37... Kg8 {[%clk 0:00:15.9]} 38. Qf3 {[%clk 0:00:24.1]}
38... Qd7 {[%clk 0:00:14.8]} 39. Rd1 {[%clk 0:00:21.4]} 39... Qc7 {[%clk
0:00:14.7]} 40. Qd5 {[%clk 0:00:20.1]} 40... h5 {[%clk 0:00:14.7]} 41. Rg1
{[%clk 0:00:19.6]} 41... Kh7 {[%clk 0:00:13.6]} 42. Rf1 {[%clk 0:00:20.2]} 42...
Kg8 {[%clk 0:00:13.3]} 43. Re1 {[%clk 0:00:15.3]} 43... Qc6 {[%clk 0:00:12.8]}
44. Qd3 {[%clk 0:00:10.3]} 44... h4 {[%clk 0:00:12.4]} 45. b3 {[%clk 0:00:10.2]}
45... Qf6 {[%clk 0:00:11.4]} 46. Re2 {[%clk 0:00:09.8]} 46... Bg7 {[%clk
0:00:11.1]} 47. b4 {[%clk 0:00:07.5]} 47... h3 {[%clk 0:00:09.4]} 48. Qxh3
{[%clk 0:00:06.4]} 48... Qa1+ {[%clk 0:00:09.2]} 49. Kb3 {[%clk 0:00:06.9]}
49... Qb1+ {[%clk 0:00:06.5]} 0-1

[Event "*** Titled Tuesday Blitz"]
[Site "Chess.com"]
[Date "2020.11.03"]
[Round "2"]
[White "Chopper1905"]
[Black "Vanina1989"]
[Result "1-0"]
[WhiteElo "2922"]
[BlackElo "2599"]
[TimeControl "180+1"]
[EndTime "10:19:49 PST"]
[Termination "Chopper1905 won on time"]

1. d4 {[%clk 0:03:00.9]} 1... Nf6 {[%clk 0:02:58.1]} 2. Bf4 {[%clk 0:02:59.5]}
2... d5 {[%clk 0:02:57.7]} 3. e3 {[%clk 0:02:58.7]} 3... c5 {[%clk 0:02:58]} 4.
Nd2 {[%clk 0:02:57.9]} 4... Nc6 {[%clk 0:02:58.1]} 5. c3 {[%clk 0:02:53.7]} 5...
e6 {[%clk 0:02:41.2]} 6. Ngf3 {[%clk 0:02:43]} 6... Bd6 {[%clk 0:02:41]} 7. Bg5
{[%clk 0:02:34.5]} 7... h6 {[%clk 0:02:39.7]} 8. Bh4 {[%clk 0:02:32.2]} 8... O-O
{[%clk 0:02:38.8]} 9. Bd3 {[%clk 0:02:31.3]} 9... e5 {[%clk 0:02:38.4]} 10. dxc5
{[%clk 0:02:06.7]} 10... Bxc5 {[%clk 0:02:36]} 11. e4 {[%clk 0:02:07.3]} 11...
Qb6 {[%clk 0:02:13.3]} 12. Bxf6 {[%clk 0:01:53.4]} 12... Bxf2+ {[%clk
0:02:12.1]} 13. Kf1 {[%clk 0:01:53.8]} 13... gxf6 {[%clk 0:02:11.6]} 14. exd5
{[%clk 0:01:54.2]} 14... Ne7 {[%clk 0:02:11.8]} 15. Nc4 {[%clk 0:01:54.3]} 15...
Qc5 {[%clk 0:02:00.5]} 16. Qd2 {[%clk 0:01:19.6]} 16... e4 {[%clk 0:01:47.4]}
17. Qxf2 {[%clk 0:01:01.4]} 17... Qxd5 {[%clk 0:01:42.8]} 18. Be2 {[%clk
0:00:38.2]} 18... exf3 {[%clk 0:01:41.3]} 19. Qxf3 {[%clk 0:00:38]} 19... Qg5
{[%clk 0:01:35.8]} 20. h4 {[%clk 0:00:36.4]} 20... Qg7 {[%clk 0:01:17.8]} 21.
Kg1 {[%clk 0:00:33.1]} 21... Be6 {[%clk 0:01:13.9]} 22. Rf1 {[%clk 0:00:33.2]}
22... Bd5 {[%clk 0:01:06.3]} 23. Qf2 {[%clk 0:00:29.6]} 23... Nf5 {[%clk
0:00:57.6]} 24. Rh3 {[%clk 0:00:29.3]} 24... Kh8 {[%clk 0:00:30.8]} 25. Bd3
{[%clk 0:00:28.2]} 25... Rg8 {[%clk 0:00:26.3]} 26. Rh2 {[%clk 0:00:24.9]} 26...
Ng3 {[%clk 0:00:22.5]} 27. Re1 {[%clk 0:00:21.1]} 27... Rae8 {[%clk 0:00:20.3]}
28. Ne3 {[%clk 0:00:18.5]} 28... Bc6 {[%clk 0:00:17.3]} 29. Rh3 {[%clk
0:00:17.4]} 29... Re5 {[%clk 0:00:14.1]} 30. Nf1 {[%clk 0:00:07.7]} 30... Nxf1
{[%clk 0:00:11.6]} 31. Rxe5 {[%clk 0:00:07]} 31... fxe5 {[%clk 0:00:09.5]} 32.
Bxf1 {[%clk 0:00:07]} 32... Qg6 {[%clk 0:00:05]} 33. Re3 {[%clk 0:00:07]} 33...
f6 {[%clk 0:00:05]} 34. b4 {[%clk 0:00:06]} 34... a6 {[%clk 0:00:04.9]} 35. a4
{[%clk 0:00:06.1]} 35... Bxa4 {[%clk 0:00:04.6]} 36. Rf3 {[%clk 0:00:06.5]}
36... Rf8 {[%clk 0:00:04]} 37. Qb6 {[%clk 0:00:06]} 37... Bc6 {[%clk 0:00:03.5]}
38. Rf2 {[%clk 0:00:06.3]} 38... Qg4 {[%clk 0:00:03.6]} 39. Qc5 {[%clk
0:00:04.8]} 39... Rf7 {[%clk 0:00:03.8]} 40. Qd6 {[%clk 0:00:04]} 40... Kg7
{[%clk 0:00:03.5]} 41. Qd2 {[%clk 0:00:01.8]} 41... Qxh4 {[%clk 0:00:03.7]} 42.
Qe3 {[%clk 0:00:02.5]} 42... Qg5 {[%clk 0:00:03.8]} 43. Qe2 {[%clk 0:00:02.8]}
43... Rd7 {[%clk 0:00:03.9]} 44. c4 {[%clk 0:00:03.2]} 44... Rd4 {[%clk
0:00:03.7]} 45. Qe1 {[%clk 0:00:03.1]} 45... Qg4 {[%clk 0:00:02.9]} 46. b5
{[%clk 0:00:03.4]} 46... axb5 {[%clk 0:00:02.8]} 47. cxb5 {[%clk 0:00:04.3]}
47... Be4 {[%clk 0:00:03]} 48. Qc3 {[%clk 0:00:04.1]} 48... Rd7 {[%clk
0:00:02.7]} 49. Qe3 {[%clk 0:00:03.4]} 49... h5 {[%clk 0:00:02.5]} 50. Qb6
{[%clk 0:00:03.7]} 1-0

[Event "*** Titled Tuesday Blitz"]
[Site "Chess.com"]
[Date "2020.11.03"]
[Round "2"]
[White "InitiatingASC"]
[Black "ethylalcohol"]
[Result "1-0"]
[WhiteElo "2387"]
[BlackElo "2099"]
[TimeControl "180+1"]
[EndTime "10:19:49 PST"]
[Termination "InitiatingASC won on time"]

1. Nf3 {[%clk 0:03:00.9]} 1... Nf6 {[%clk 0:02:58.8]} 2. c4 {[%clk 0:02:59.8]}
2... g6 {[%clk 0:02:58.9]} 3. g3 {[%clk 0:03:00.3]} 3... Bg7 {[%clk 0:02:59.2]}
4. Bg2 {[%clk 0:03:01.2]} 4... O-O {[%clk 0:02:59.2]} 5. O-O {[%clk 0:03:01.9]}
5... d6 {[%clk 0:02:59.6]} 6. d3 {[%clk 0:03:01.4]} 6... e5 {[%clk 0:02:59.4]}
7. Nc3 {[%clk 0:03:01.6]} 7... Nc6 {[%clk 0:02:59.5]} 8. Rb1 {[%clk 0:03:01.5]}
8... Re8 {[%clk 0:02:59.2]} 9. Ne1 {[%clk 0:02:59.6]} 9... Bf5 {[%clk 0:02:54]}
10. Nc2 {[%clk 0:02:59]} 10... h5 {[%clk 0:02:46.6]} 11. Ne3 {[%clk 0:02:56.9]}
11... Be6 {[%clk 0:02:39.6]} 12. b4 {[%clk 0:02:56.5]} 12... Qd7 {[%clk
0:02:35.6]} 13. Ncd5 {[%clk 0:02:52.8]} 13... Rab8 {[%clk 0:02:29.3]} 14. b5
{[%clk 0:02:30.8]} 14... Nd4 {[%clk 0:02:26.1]} 15. Bb2 {[%clk 0:02:27.8]} 15...
c6 {[%clk 0:02:15.5]} 16. Nxf6+ {[%clk 0:02:26.3]} 16... Bxf6 {[%clk 0:02:16.4]}
17. a4 {[%clk 0:02:26.6]} 17... Bh3 {[%clk 0:02:08.4]} 18. Bxd4 {[%clk
0:01:50.6]} 18... exd4 {[%clk 0:02:02.8]} 19. Nc2 {[%clk 0:01:50.8]} 19... h4
{[%clk 0:01:43.8]} 20. Ne1 {[%clk 0:01:46.8]} 20... Kg7 {[%clk 0:01:31.7]} 21.
a5 {[%clk 0:01:25.3]} 21... c5 {[%clk 0:01:17.8]} 22. Qd2 {[%clk 0:01:05.6]}
22... Rh8 {[%clk 0:01:12.4]} 23. Qf4 {[%clk 0:01:02.3]} 23... Bxg2 {[%clk
0:00:57.4]} 24. Nxg2 {[%clk 0:00:55.3]} 24... hxg3 {[%clk 0:00:56]} 25. fxg3
{[%clk 0:00:54.3]} 25... Be5 {[%clk 0:00:50.9]} 26. Qf3 {[%clk 0:00:47.6]} 26...
f5 {[%clk 0:00:46.6]} 27. Nf4 {[%clk 0:00:39.8]} 27... Rh6 {[%clk 0:00:43.1]}
28. Rf2 {[%clk 0:00:37.7]} 28... Rbh8 {[%clk 0:00:41.9]} 29. a6 {[%clk
0:00:34.3]} 29... b6 {[%clk 0:00:34.2]} 30. Ra1 {[%clk 0:00:32.2]} 30... Rb8
{[%clk 0:00:31.4]} 31. Nd5 {[%clk 0:00:30.5]} 31... Qd8 {[%clk 0:00:25.7]} 32.
Rg2 {[%clk 0:00:30.2]} 32... Qg5 {[%clk 0:00:25.4]} 33. Rf1 {[%clk 0:00:30.1]}
33... Rbh8 {[%clk 0:00:23.4]} 34. Nc7 {[%clk 0:00:27.4]} 34... Qe7 {[%clk
0:00:21.5]} 35. Qb7 {[%clk 0:00:25.8]} 35... Re8 {[%clk 0:00:19.5]} 36. Nd5
{[%clk 0:00:15.2]} 36... Qxb7 {[%clk 0:00:16.6]} 37. axb7 {[%clk 0:00:15.4]}
37... Rb8 {[%clk 0:00:17]} 38. Ra1 {[%clk 0:00:15]} 38... Rxb7 {[%clk
0:00:17.2]} 39. Ra2 {[%clk 0:00:14.8]} 39... Rh8 {[%clk 0:00:17.1]} 40. Rf2
{[%clk 0:00:14.2]} 40... Ra8 {[%clk 0:00:16.4]} 41. Rf1 {[%clk 0:00:14.2]} 41...
Bf6 {[%clk 0:00:15]} 42. Rfa1 {[%clk 0:00:13.7]} 42... Bd8 {[%clk 0:00:14.5]}
43. Nf4 {[%clk 0:00:12.5]} 43... Kf6 {[%clk 0:00:14.1]} 44. h4 {[%clk
0:00:11.8]} 44... Kg7 {[%clk 0:00:13.5]} 45. Kg2 {[%clk 0:00:12.2]} 45... Rf7
{[%clk 0:00:12.9]} 46. Kf3 {[%clk 0:00:12.3]} 46... Re7 {[%clk 0:00:13.1]} 47.
Nd5 {[%clk 0:00:11.2]} 47... Re5 {[%clk 0:00:11.5]} 48. Rxa7+ {[%clk 0:00:09.3]}
48... Rxa7 {[%clk 0:00:11.1]} 49. Rxa7+ {[%clk 0:00:10.2]} 49... Kh6 {[%clk
0:00:11.4]} 50. Rd7 {[%clk 0:00:10.3]} 50... Re8 {[%clk 0:00:08.8]} 51. Rxd6
{[%clk 0:00:10.5]} 51... Kh5 {[%clk 0:00:02.5]} 52. Nf6+ {[%clk 0:00:08.7]}
52... Bxf6 {[%clk 0:00:01.9]} 53. Rxf6 {[%clk 0:00:09.6]} 53... Re3+ {[%clk
0:00:02]} 54. Kf2 {[%clk 0:00:09.5]} 1-0